bitfinex/quotes_SOLUSD_20220311
["timestamp","ask_amount","ask_price","bid_price","bid_amount"]
[1647002890352,11.4861487,83.599,83.508,119.2]
[1647002890554,5.984,83.598,83.51,137.1519]
[1647002890753,5.984,83.616,83.51,137.1519]
[1647002890953,5.982,83.623,83.512,119.2]
[1647002891359,5.982,83.623,83.514,119.2]
[1647002891555,5.982,83.623,83.531,119.2]
[1647002891756,5.982,83.639,83.533,119.2]
[1647002891955,14.42,83.64,83.533,119.2]
[1647002892155,14.42,83.64,83.535,119.2]
[1647002892367,119.7,83.637,83.535,119.2]
[1647002892666,17.9413,83.63,83.536,60.57630593]
[1647002892868,5.982,83.629,83.536,60.57630593]
[1647002893271,125.682,83.629,83.536,60.57630593]
[1647002893468,32.61827947,83.629,83.536,60.57630593]
[1647002894268,17.9464,83.61,83.536,60.57630593]
[1647002894469,0.53818669,83.609,83.536,60.57630593]
[1647002894871,5.982,83.608,83.536,60.57630593]
[1647002895967,5.982,83.608,83.531,45.8733]
[1647002896371,119.7,83.599,83.531,45.8733]
[1647002896570,5.982,83.598,83.531,45.8733]
[1647002896770,5.982,83.599,83.531,45.8733]
[1647002896972,1.63334434,83.657,83.533,125.0]
[1647002897171,0.1166,94.33,83.535,5.68954244]
[1647002897172,26.63627947,83.614,83.535,5.68954244]
[1647002897375,47.6383,83.698,83.542,5.33370662]
[1647002897575,47.6383,83.698,83.545,0.49]
[1647002897871,47.6383,83.698,83.562,4.66889268]
[1647002898072,17.8265775,83.697,83.564,119.7]
[1647002898271,17.8265775,83.697,83.566,119.7]
[1647002898471,17.8265775,83.697,83.6,17.9296]
[1647002898672,119.7,83.696,83.601,56.62224236]
[1647002898875,119.7,83.689,83.602,6.0]
[1647002899076,17.9304,83.69,83.602,43.16993542]
[1647002899273,17.9304,83.69,83.603,37.16993542]
[1647002899474,11.8485775,83.697,83.603,37.16993542]
[1647002899475,11.8485775,83.697,83.61,17.9326]
[1647002899676,11.8485775,83.697,83.611,6.0]
[1647002899879,17.9308,83.69,83.611,37.16993542]
[1647002900075,5.977,83.689,83.612,43.16993542]
[1647002900377,5.977,83.689,83.613,37.16993542]
[1647002900578,5.977,83.689,83.613,86.70366931]
[1647002900777,14.42,83.69,83.613,49.53373389]
[1647002900983,5.977,83.689,83.601,47.4075]
[1647002901177,32.3504,83.69,83.602,6.0]
[1647002901580,32.3504,83.69,83.604,63.36793114]
[1647002901784,32.3504,83.69,83.604,183.06793114]
[1647002901985,14.42,83.69,83.62,17.9309]
[1647002902183,14.42,83.69,83.605,3.04447957]
[1647002902381,5.977,83.689,83.589,3.04447957]
[1647002903186,17.9365,83.67,83.602,63.4399585]
[1647002903386,1.98230451,83.669,83.602,63.4399585]
[1647002904689,5.978,83.679,83.611,119.7]
[1647002904989,5.978,83.702,83.613,119.7]
[1647002905187,5.978,83.702,83.612,6.0]
[1647002905188,5.976,83.714,83.614,6.0]
[1647002905391,14.42,83.7,83.602,63.4399585]
[1647002905692,139.02791791,83.699,83.602,63.4399585]
[1647002905891,17.9339,83.68,83.602,63.4399585]
[1647002906091,6.4569641,83.679,83.602,63.4399585]
[1647002906691,119.7,83.678,83.576,3.04447957]
[1647002906891,29.7615,83.677,83.577,6.0]
[1647002907091,17.935,83.67,83.59,17.9371]
[1647002907694,17.935,83.67,83.591,63.94175114]
[1647002909098,17.935,83.67,83.59,17.9371]
[1647002909396,14.42,83.66,83.557,28.56195677]
[1647002909592,17.9471,83.64,83.559,17.5811]
[1647002909804,14.42,83.63,83.559,17.5811]
[1647002910095,17.35476054,83.629,83.552,18.0836]
[1647002910490,50.84464469,83.629,83.552,18.0836]
[1647002910692,83.15610896,83.629,83.552,18.0836]
[1647002910893,46.72970438,83.629,83.536,5.982]
[1647002911094,5.982,83.628,83.536,5.982]
[1647002911296,17.953,83.61,83.537,62.59179502]
[1647002911492,2.45712147,83.609,83.537,62.59179502]
[1647002912196,2.45712147,83.609,83.54,17.9447]
[1647002912800,2.45712147,83.609,83.537,62.59179502]
[1647002913806,2.45712147,83.609,83.54,17.9446]
[1647002914007,17.9469,83.61,83.54,17.9446]
[1647002914608,17.9469,83.61,83.541,6.0]
[1647002914807,17.9469,83.61,83.537,62.59179502]
[1647002915008,16.08596788,83.609,83.537,62.59179502]
[1647002915209,17.949,83.6,83.537,62.59179502]
[1647002916509,5.982,83.599,83.537,62.59179502]
[1647002916712,5.982,83.599,83.536,5.982]
[1647002916713,17.9556,83.59,83.536,5.982]
[1647002916909,5.982,83.589,83.536,5.982]
[1647002917312,8.95447957,83.589,83.536,5.982]
[1647002917511,128.72647957,83.588,83.536,5.982]
[1647002917711,3.72691413,83.587,83.501,60.83857692]
[1647002917911,3.72691413,83.587,83.468,45.761]
[1647002917912,119.7,83.585,83.468,45.761]
[1647002918114,119.7,83.569,83.468,45.761]
[1647002918312,14.42,83.56,83.437,72.0675]
[1647002918527,14.42,83.55,83.438,45.761]
[1647002918726,14.42,83.54,83.444,18.1632]
[1647002918924,9.97374368,83.549,83.444,18.1632]
[1647002919123,13.01822325,83.549,83.444,18.1632]
[1647002919426,119.7,83.539,83.439,64.53515833]
[1647002919627,5.987,83.547,83.439,64.53515833]
[1647002919824,14.42,83.54,83.439,64.53515833]
[1647002920024,5.987,83.539,83.439,64.53515833]
[1647002920625,16.45197405,83.566,83.439,64.53515833]
[1647002920626,5.987,83.545,83.439,64.53515833]
[1647002920826,3.04447957,83.557,83.452,23.57919467]
[1647002921026,5.986,83.563,83.463,17.5296]
[1647002921225,5.986,83.569,83.464,6.0]
[1647002921428,14.42,83.57,83.464,6.0]
[1647002921628,5.986,83.585,83.475,23.57919467]
[1647002921828,13.14269278,83.576,83.49,17.9548]
[1647002922031,13.14269278,83.576,83.491,69.14331127]
[1647002922830,5.985,83.579,83.5,17.9543]
[1647002923126,3.04447957,83.575,83.5,17.9543]
[1647002923328,5.985,83.574,83.5,17.9543]
[1647002923527,5.985,83.579,83.5,17.9543]
[1647002923728,17.9556,83.57,83.491,69.14331127]
[1647002923927,5.985,83.569,83.491,63.14331127]
[1647002925228,5.985,83.569,83.492,119.7]
[1647002925430,5.985,83.569,83.501,119.7]
[1647002925630,5.985,83.599,83.503,119.7]
[1647002925930,5.985,83.599,83.504,125.7]
[1647002926131,5.985,83.599,83.502,6.0]
[1647002926331,13.15432539,83.598,83.493,6.0]
[1647002926535,5.984,83.597,83.493,6.0]
[1647002926733,9.02847957,83.597,83.493,6.0]
[1647002926934,17.9519,83.59,83.51,17.9515]
[1647002927235,5.984,83.589,83.511,49.50394989]
[1647002927631,3.04447957,83.588,83.511,49.50394989]
[1647002927834,5.984,83.587,83.511,49.50394989]
[1647002928233,3.04447957,83.586,83.512,5.984]
[1647002928433,17.9533,83.58,83.512,5.984]
[1647002928633,32.3733,83.58,83.512,5.984]
[1647002928833,32.3733,83.58,83.513,6.0]
[1647002929034,32.3733,83.58,83.514,5.984]
[1647002929236,32.3733,83.58,83.512,5.984]
[1647002929635,35.41777957,83.58,83.512,5.984]
[1647002930637,5.984,83.579,83.511,49.50394989]
[1647002931839,17.46447957,83.58,83.52,17.9513]
[1647002932039,14.42,83.58,83.521,119.7]
[1647002932240,17.9507,83.59,83.522,5.984]
[1647002932642,17.9507,83.59,83.513,5.984]
[1647002933041,13.66742662,83.589,83.512,5.984]
[1647002933242,5.984,83.588,83.511,49.50394989]
[1647002933440,17.954,83.58,83.511,49.50394989]
[1647002934849,3.04447957,83.579,83.512,125.684]
[1647002935051,5.984,83.605,83.514,119.7]
[1647002935246,180.26,83.67,83.521,119.7]
[1647002935247,5.982,83.629,83.521,119.7]
[1647002935548,5.982,83.629,83.523,119.7]
[1647002935745,9.92541528,83.628,83.524,144.6607]
[1647002935947,5.982,83.627,83.526,119.7]
[1647002936153,35.55638672,83.627,83.525,46.52927471]
[1647002936348,119.7,83.619,83.525,46.52927471]
[1647002936553,119.7,83.609,83.525,46.52927471]
[1647002936750,3.90546673,83.608,83.525,46.52927471]
[1647002936950,5.982,83.607,83.525,46.52927471]
[1647002937349,9.02647957,83.607,83.525,46.52927471]
[1647002937551,3.04447957,83.606,83.525,46.52927471]
[1647002938250,17.9533,83.6,83.525,46.52927471]
[1647002938452,5.982,83.599,83.513,5.982]
[1647002938654,3.04447957,83.599,83.513,5.982]
[1647002938853,3.04447957,83.598,83.513,5.982]
[1647002939053,5.984,83.597,83.513,5.982]
[1647002939255,17.9529,83.58,83.5,17.9561]
[1647002939454,9.92541528,83.578,83.5,17.9561]
[1647002939653,9.92541528,83.578,83.496,57.49063587]
[1647002940058,3.04447957,83.577,83.495,24.9917]
[1647002940352,5.985,83.576,83.472,119.7]
[1647002940553,17.9568,83.56,83.472,142.7364]
[1647002940754,32.3768,83.56,83.472,142.7364]
[1647002941154,6.9499463,83.559,83.474,119.7]
[1647002941555,17.9605,83.54,83.472,23.0364]
[1647002942559,9.92541528,83.539,83.472,23.0364]
[1647002942758,17.9636,83.53,83.472,23.0364]
[1647002945206,17.9636,83.53,83.446,17.9552]
[1647002945404,3.04447957,83.529,83.447,6.0]
[1647002945601,17.9703,83.52,83.447,6.0]
[1647002945801,3.90546673,83.519,83.425,46.7245]
[1647002946001,59.9075,83.51,83.43,17.9702]
[1647002946208,74.3275,83.51,83.43,17.9702]
[1647002946603,74.3275,83.51,83.425,46.7245]
[1647002946604,74.3275,83.51,83.431,14.66863873]
[1647002946805,122.74447957,83.509,83.431,14.66863873]
[1647002947003,9.32673675,83.499,83.421,53.94041988]
[1647002947210,14.42,83.49,83.421,53.94041988]
[1647002947405,74.342,83.49,83.421,53.94041988]
[1647002947604,14.42,83.49,83.421,53.94041988]
[1647002948532,14.42,83.49,83.422,6.0]
[1647002948705,3.90546673,83.479,83.422,6.0]
[1647002949214,9.89546673,83.479,83.408,6.0]
[1647002949405,3.04447957,83.478,83.391,44.86985576]
[1647002949605,3.04447957,83.478,83.391,23.4934]
[1647002949804,17.977,83.47,83.391,23.4934]
[1647002950004,119.7,83.469,83.39,17.9788]
[1647002950204,119.7,83.469,83.379,21.37645576]
[1647002950205,5.993,83.468,83.379,21.37645576]
[1647002950407,5.993,83.468,83.341,47.5261]
[1647002950614,46.4187,83.467,83.351,3.04447957]
[1647002950808,46.4187,83.467,83.353,14.66056966]
[1647002951006,17.9799,83.46,83.36,17.9842]
[1647002951205,3.90546673,83.449,83.36,17.9842]
[1647002951407,3.90546673,83.449,83.361,9.04447957]
[1647002951704,3.90546673,83.449,83.361,23.70504923]
[1647002951906,3.90546673,83.449,83.361,9.04447957]
[1647002952308,17.9841,83.44,83.361,9.04447957]
[1647002952507,17.9841,83.44,83.361,6.0]
[1647002952508,32.4041,83.44,83.361,6.0]
[1647002952706,32.4041,83.44,83.354,86.07570327]
[1647002952707,39.8541,83.44,83.354,86.07570327]
[1647002953013,42.89857957,83.44,83.354,86.07570327]
[1647002953408,5.995,83.439,83.354,24.0184]
[1647002953607,17.9922,83.42,83.354,24.0184]
[1647002953808,32.4122,83.42,83.354,24.0184]
[1647002954008,32.4122,83.42,83.355,6.0]
[1647002954210,32.4122,83.42,83.354,24.0184]
[1647002954408,9.32673675,83.419,83.356,50.80975072]
[1647002955009,14.42,83.42,83.356,50.80975072]
[1647002955211,48.3807,83.436,83.357,3.04447957]
[1647002955412,21.87,83.44,83.357,3.04447957]
[1647002955614,21.87,83.44,83.358,14.59652751]
[1647002955811,21.87,83.44,83.36,17.9827]
[1647002956010,21.87,83.44,83.361,6.0]
[1647002956311,21.87,83.44,83.361,9.04447957]
[1647002956510,21.87,83.44,83.362,3.04447957]
[1647002956715,21.87,83.44,83.37,17.9825]
[1647002957111,21.87,83.44,83.371,3.04447957]
[1647002957311,7.45,83.44,83.371,3.04447957]
[1647002957515,7.45,83.44,83.372,54.94158279]
[1647002958116,9.61610047,83.44,83.39,17.9782]
[1647002958313,7.45,83.44,83.391,60.64754069]
[1647002959716,7.45,83.44,83.392,5.994]
[1647002960419,7.45,83.44,83.393,119.7]
[1647002960817,7.45,83.44,83.395,119.7]
[1647002961518,7.45,83.44,83.391,60.64754069]
[1647002961918,12.87967215,83.439,83.381,5.994]
[1647002962120,12.87967215,83.439,83.357,5.994]
[1647002962523,12.87967215,83.439,83.36,17.9851]
[1647002962824,12.87967215,83.439,83.362,61.1992877]
[1647002963025,12.87967215,83.439,83.363,5.995]
[1647002963948,12.87967215,83.439,83.37,17.9824]
[1647002964349,12.87967215,83.439,83.371,5.994]
[1647002964551,12.87967215,83.439,83.372,119.7]
[1647002964749,12.87967215,83.439,83.373,5.994]
[1647002964951,12.87967215,83.439,83.375,59.96214758]
[1647002965152,21.87,83.44,83.38,17.9809]
[1647002965955,21.87,83.44,83.376,5.994]
[1647002966353,21.87,83.44,83.377,119.7]
[1647002966556,21.87,83.44,83.381,119.7]
[1647002966757,7.45,83.44,83.381,119.7]
[1647002967155,7.45,83.44,83.38,17.9812]
[1647002967760,7.45,83.44,83.381,119.7]
[1647002967959,7.45,83.44,83.39,17.9752]
[1647002968159,7.45,83.44,83.391,125.694]
[1647002968362,7.45,83.44,83.395,119.7]
[1647002968562,7.45,83.44,83.397,119.7]
[1647002968763,7.45,83.44,83.399,119.7]
[1647002969161,7.45,83.44,83.401,119.7]
[1647002969363,7.45,83.44,83.403,119.7]
[1647002969562,3.26037658,83.562,83.4,59.9066]
[1647002969563,5.993,83.499,83.407,119.7]
[1647002969764,60.93584591,83.519,83.409,119.7]
[1647002970063,5.99,83.519,83.412,62.25688878]
[1647002970262,5.99,83.528,83.442,57.9096126]
[1647002970463,5.989,83.547,83.443,125.7]
[1647002970663,5.989,83.547,83.445,119.7]
[1647002970864,5.988,83.558,83.447,119.7]
[1647002971070,5.988,83.558,83.449,119.7]
[1647002971262,5.988,83.558,83.461,119.7]
[1647002971465,5.988,83.558,83.463,119.7]
[1647002971670,5.987,83.568,83.465,119.7]
[1647002971866,3.04447957,83.582,83.466,5.986]
[1647002972070,3.04447957,83.582,83.467,155.8599734]
[1647002972369,18.86573625,83.581,83.482,62.24277739]
[1647002972569,18.86573625,83.581,83.483,131.685]
[1647002972769,3.04447957,83.58,83.483,131.685]
[1647002972976,137.16447957,83.58,83.483,131.685]
[1647002973170,5.985,83.579,83.483,119.7]
[1647002973370,9.02947957,83.579,83.5,17.9539]
[1647002973577,9.02947957,83.579,83.501,60.02953381]
[1647002973773,3.04447957,83.578,83.501,60.02953381]
[1647002973971,5.985,83.577,83.501,60.02953381]
[1647002974470,3.04447957,83.576,83.501,60.02953381]
[1647002974672,17.9554,83.57,83.502,119.7]
[1647002974875,5.985,83.575,83.502,119.7]
[1647002975071,5.985,83.575,83.501,60.02953381]
[1647002975271,3.04447957,83.576,83.502,5.985]
[1647002975674,3.04447957,83.59,83.51,17.9536]
[1647002975878,5.984,83.586,83.51,17.9536]
[1647002976178,5.984,83.589,83.502,5.985]
[1647002976372,3.04447957,83.585,83.502,5.985]
[1647002976576,14.42,83.57,83.454,18.0767]
[1647002976774,4.77721459,83.568,83.429,7.0]
[1647002976973,119.7,83.559,83.413,119.7]
[1647002977174,14.42,83.55,83.413,119.7]
[1647002977373,14.42,83.55,83.412,17.8164]
[1647002977374,16.51833003,83.548,83.415,119.7]
[1647002977573,16.51833003,83.548,83.421,119.7]
[1647002977776,44.26157051,83.548,83.461,119.7]
[1647002977976,3.04447957,83.547,83.463,47.79208598]
[1647002978174,3.04447957,83.547,83.465,119.7]
[1647002978373,3.04447957,83.547,83.466,5.987]
[1647002978574,16.51833003,83.548,83.466,5.987]
[1647002978783,16.51833003,83.548,83.464,5.987]
[1647002978974,17.9628,83.54,83.464,5.987]
[1647002979175,14.42,83.53,83.464,5.987]
[1647002979375,4.16387345,83.529,83.464,5.987]
[1647002981282,4.16387345,83.529,83.465,119.7]
[1647002981475,4.16387345,83.529,83.464,5.987]
[1647002981675,5.988,83.528,83.441,5.988]
[1647002982076,5.988,83.528,83.424,5.989]
[1647002982077,11.448,83.528,83.424,5.989]
[1647002982306,11.448,83.528,83.425,119.7]
[1647002982503,17.969,83.52,83.426,5.989]
[1647002982802,5.989,83.519,83.431,65.39212649]
[1647002983512,17.9713,83.51,83.432,5.989]
[1647002983713,14.42,83.5,83.4,3.04447957]
[1647002983914,5.99,83.499,83.4,3.04447957]
[1647002984105,10.71,83.499,83.387,3.04447957]
[1647002984304,10.71,83.499,83.405,119.7]
[1647002984606,16.51833003,83.498,83.414,174.42513478]
[1647002984802,16.51833003,83.498,83.415,125.69]
[1647002985006,16.51833003,83.498,83.415,5.99]
[1647002985404,16.51833003,83.498,83.42,17.9728]
[1647002985709,16.51833003,83.498,83.421,119.7]
[1647002985906,16.51833003,83.498,83.423,119.7]
[1647002986110,16.51833003,83.498,83.424,5.99]
[1647002986310,16.51833003,83.498,83.425,119.7]
[1647002986508,16.51833003,83.498,83.431,119.7]
[1647002986708,14.42,83.5,83.435,118.7]
[1647002986906,14.42,83.5,83.437,118.7]
[1647002987106,14.42,83.5,83.438,5.99]
[1647002987507,14.42,83.5,83.441,119.7]
[1647002988309,5.99,83.526,83.441,119.7]
[1647002988507,14.42,83.52,83.441,119.7]
[1647002988807,14.42,83.52,83.451,119.7]
[1647002989207,17.42703212,83.519,83.453,119.7]
[1647002989408,17.42703212,83.519,83.452,55.69795157]
[1647002991212,17.9697,83.51,83.452,55.69795157]
[1647002991411,17.42703212,83.519,83.452,55.69795157]
[1647002992214,5.989,83.518,83.452,55.69795157]
[1647002992615,5.989,83.519,83.452,55.69795157]
[1647002992817,14.42,83.52,83.453,125.689]
[1647002993015,22.864,83.527,83.454,6.0]
[1647002993216,22.864,83.527,83.455,125.688]
[1647002993416,1.45910294,83.526,83.455,125.688]
[1647002993616,1.45910294,83.526,83.461,119.7]
[1647002993819,1.45910294,83.526,83.463,119.7]
[1647002994221,22.864,83.527,83.463,119.7]
[1647002994416,22.864,83.527,83.465,119.7]
[1647002994818,22.864,83.527,83.47,17.9622]
[1647002995220,22.864,83.527,83.471,47.49750583]
[1647002995421,24.7514,83.539,83.472,119.7]
[1647002995822,24.7514,83.539,83.481,119.7]
[1647002996824,24.7514,83.539,83.472,119.7]
[1647002997022,5.987,83.559,83.474,119.7]
[1647002997222,5.987,83.559,83.49,17.9578]
[1647002997625,14.68841387,83.558,83.491,51.28771134]
[1647002997822,17.9603,83.55,83.491,51.28771134]
[1647002998824,122.74447957,83.549,83.45,59.8711]
[1647002999025,17.9664,83.53,83.467,6.0]
[1647002999427,3.04447957,83.529,83.437,49.3728]
[1647002999825,5.99378961,83.528,83.467,55.69148915]
[1647003000025,17.9667,83.52,83.467,55.69148915]
[1647003000425,3.04447957,83.527,83.467,55.69148915]
[1647003000927,5.99378961,83.528,83.467,55.69148915]
[1647003002131,17.9668,83.52,83.467,55.69148915]
[1647003002327,5.99378961,83.528,83.467,55.69148915]
[1647003002528,14.42,83.54,83.467,55.69148915]
[1647003003128,14.42,83.54,83.468,119.7]
[1647003003528,31.12225442,83.54,83.468,119.7]
[1647003004228,49.08395442,83.54,83.47,17.9627]
[1647003005030,14.42,83.54,83.471,119.7]
[1647003005228,5.987,83.539,83.481,119.7]
[1647003005528,5.987,83.545,83.481,119.7]
[1647003005930,5.987,83.545,83.482,60.1642142]
[1647003006133,17.9611,83.54,83.482,60.1642142]
[1647003008331,16.828288,83.548,83.49,17.9594]
[1647003008754,3.04447957,83.551,83.49,17.9594]
[1647003009254,5.986,83.559,83.49,17.9594]
[1647003009857,15.261404,83.551,83.49,17.9594]
[1647003010555,17.9604,83.55,83.49,17.9594]
[1647003011559,17.9609,83.54,83.482,60.1642142]
[1647003011758,17.9609,83.54,83.436,18.1611]
[1647003011960,32.3809,83.54,83.436,18.1611]
[1647003012359,32.3809,83.54,83.452,119.7]
[1647003012761,32.3809,83.54,83.454,119.7]
[1647003012959,5.988,83.539,83.454,119.7]
[1647003013161,5.988,83.539,83.453,50.04808688]
[1647003013162,17.9629,83.53,83.461,119.7]
[1647003014163,17.9629,83.53,83.47,17.9632]
[1647003014364,17.9629,83.53,83.471,58.84915529]
[1647003014570,5.42079948,83.538,83.472,119.7]
[1647003015365,5.42079948,83.538,83.48,17.9622]
[1647003015767,5.42079948,83.538,83.481,119.7]
[1647003015973,5.987,83.556,83.481,119.7]
[1647003016267,5.987,83.556,83.491,119.7]
[1647003016467,5.986,83.569,83.491,119.7]
[1647003016869,15.56750357,83.552,83.493,119.7]
[1647003017069,5.986,83.551,83.492,48.67953743]
[1647003017266,15.56750357,83.552,83.492,48.67953743]
[1647003017468,15.56750357,83.552,83.493,119.7]
[1647003018265,5.986,83.569,83.493,119.7]
[1647003018467,5.986,83.569,83.501,119.7]
[1647003018667,5.985,83.575,83.501,119.7]
[1647003018875,5.985,83.576,83.503,119.7]
[1647003019076,5.985,83.578,83.505,119.7]
[1647003019267,16.23852513,83.577,83.507,119.7]
[1647003019471,5.985,83.576,83.521,119.7]
[1647003019671,16.23852513,83.577,83.523,119.7]
[1647003019868,45.8358,83.579,83.523,119.7]
[1647003020877,45.8358,83.579,83.53,17.9516]
[1647003021873,17.9494,83.59,83.53,17.9516]
[1647003022074,5.982,83.589,83.53,17.9516]
[1647003022275,19.49479625,83.588,83.53,17.9516]
[1647003022472,19.49479625,83.588,83.522,49.67155026]
[1647003022878,5.984,83.587,83.522,49.67155026]
[1647003023080,19.49479625,83.588,83.523,5.984]
[1647003023274,17.9523,83.58,83.523,5.984]
[1647003023475,17.9523,83.58,83.522,49.67155026]
[1647003023876,19.49479625,83.588,83.523,119.7]
[1647003024379,19.49479625,83.588,83.524,5.984]
[1647003024577,17.9524,83.58,83.523,5.984]
[1647003025177,17.9524,83.58,83.522,49.67155026]
[1647003026578,17.9524,83.58,83.523,119.7]
[1647003026978,17.9501,83.59,83.524,5.984]
[1647003027178,45.3457,83.597,83.524,5.984]
[1647003027381,1.63334434,83.608,83.524,5.984]
[1647003027581,5.982,83.607,83.524,5.984]
[1647003027778,14.42,83.61,83.524,5.984]
[1647003028181,32.3677,83.61,83.531,119.7]
[1647003028479,18.762121,83.613,83.533,119.7]
[1647003028681,18.762121,83.613,83.537,119.7]
[1647003028879,18.762121,83.613,83.538,5.982]
[1647003029279,18.762121,83.613,83.54,119.7]
[1647003029481,18.762121,83.613,83.54,5.982]
[1647003029682,18.762121,83.613,83.537,5.982]
[1647003029888,18.762121,83.613,83.537,125.682]
[1647003030582,17.9462,83.61,83.537,119.7]
[1647003030981,9.02647957,83.609,83.537,119.7]
[1647003031381,3.04447957,83.608,83.537,119.7]
[1647003031583,5.982,83.607,83.537,119.7]
[1647003031982,17.9533,83.59,83.537,119.7]
[1647003032182,1.92008248,83.589,83.537,119.7]
[1647003033083,17.9533,83.59,83.537,119.7]
[1647003035809,17.9533,83.59,83.536,62.35906349]
[1647003039311,17.9533,83.59,83.508,119.7]
[1647003039713,5.982,83.589,83.511,119.7]
[1647003039913,17.9538,83.57,83.511,119.7]
[1647003040312,17.92616917,83.569,83.513,119.7]
[1647003041014,17.9562,83.56,83.508,5.985]
[1647003041414,3.04447957,83.559,83.508,5.985]
[1647003041813,5.985,83.558,83.508,5.985]
[1647003042113,2.75603431,83.549,83.468,54.17740008]
[1647003042313,14.42,83.54,83.468,54.17740008]
[1647003042720,5.987,83.539,83.468,54.17740008]
[1647003043015,17.38817185,83.529,83.468,54.17740008]
[1647003043618,17.38817185,83.529,83.445,119.7]
[1647003043825,45.4053,83.528,83.445,119.7]
[1647003044316,17.9673,83.52,83.451,119.7]
[1647003044718,17.9673,83.52,83.453,119.7]
[1647003045320,17.9673,83.52,83.452,57.46103917]
[1647003046220,5.989,83.519,83.452,57.46103917]
[1647003046423,3.29403163,83.509,83.46,17.9663]
[1647003046620,8.42403163,83.509,83.46,17.9663]
[1647003048224,5.13,83.509,83.46,17.9663]
[1647003048425,17.9668,83.51,83.46,17.9663]
[1647003048624,17.9659,83.52,83.46,17.9663]
[1647003048824,5.988,83.519,83.46,17.9663]
[1647003049226,5.988,83.527,83.461,119.7]
[1647003049428,45.4053,83.528,83.48,17.9613]
[1647003049625,45.4053,83.528,83.481,51.90831499]
[1647003050025,5.987,83.527,83.481,51.90831499]
[1647003050426,45.4053,83.528,83.481,51.90831499]
[1647003051028,19.58126172,83.527,83.447,30.32166418]
[1647003051234,5.988,83.526,83.41,14.42]
[1647003051530,5.988,83.526,83.45,17.968]
[1647003051728,5.988,83.526,83.451,119.7]
[1647003051930,19.58126172,83.527,83.451,150.02166418]
[1647003052129,45.4053,83.528,83.453,119.7]
[1647003052529,45.4053,83.528,83.455,119.7]
[1647003052732,45.4053,83.528,83.47,17.9626]
[1647003053033,17.57796576,83.527,83.471,58.33797783]
[1647003054234,17.9651,83.52,83.471,58.33797783]
[1647003055034,17.57796576,83.527,83.471,58.33797783]
[1647003055434,17.57796576,83.527,83.48,17.9619]
[1647003055634,45.4053,83.528,83.48,17.9619]
[1647003057037,45.4053,83.528,83.471,58.33797783]
[1647003057236,17.9652,83.52,83.471,58.33797783]
[1647003058938,45.4053,83.528,83.472,119.7]
[1647003059143,5.988,83.547,83.48,17.9621]
[1647003059339,24.4461,83.553,83.481,119.7]
[1647003059741,5.986,83.552,83.481,119.7]
[1647003059943,24.4461,83.553,83.481,119.7]
[1647003060146,24.7994,83.559,83.483,119.7]
[1647003060339,24.7994,83.559,83.49,17.9591]
[1647003060540,24.7994,83.559,83.491,119.7]
[1647003060744,23.4057,83.579,83.491,150.02166418]
[1647003060947,3.04447957,83.59,83.491,150.02166418]
[1647003060948,3.04447957,83.59,83.493,119.7]
[1647003061164,47.9631,83.607,83.501,119.7]
[1647003061361,47.9631,83.607,83.5,59.8437]